{"text_format":"1","workbook":"xlsx","n_sheets":2,"sheets":["入力シート","管理用"],"not_rendered":{"charts":0,"images":0,"macros":0,"external_links":0,"defined_names":0,"comments":1,"pivot_tables":0},"unopened":[],"bounds":{"document_bytes":16777216,"sheet_cells":100000,"rows_first":2000,"rows_last":500,"rows_between":2000,"halvings":0,"cell_chars":16384,"cell_head_chars":4096},"cells_cut":0,"cells_raw":0,"read":"whole","date_system":"1900"}

{"sheet":"入力シート","index":0,"n_rows":26,"n_cols":35,"rows_kept":26,"cut":false,"hidden":false,"merged":[[11,2,11,4],[16,17,17,19],[16,20,17,21],[20,17,21,19],[20,20,21,21],[26,22,29,22],[1,6,1,16],[5,13,7,13],[5,14,5,15],[8,13,9,13],[3,16,3,19],[5,16,5,22],[11,6,11,8],[11,9,11,12],[26,14,29,16],[25,14,25,16],[11,20,11,21],[11,17,11,19],[11,13,11,15],[12,16,13,16],[12,17,13,19],[12,20,13,21],[25,13,29,13],[25,17,25,19],[0,1,0,23],[9,8,9,9],[5,2,5,3],[6,23,9,23],[6,14,6,22],[8,14,9,22],[5,0,5,1],[9,1,9,3],[9,4,9,5],[7,15,7,22],[3,20,3,22],[26,17,29,19],[25,20,25,21],[26,20,29,21],[16,0,17,0],[18,0,19,0],[20,0,21,0],[22,0,23,0],[16,1,17,1],[16,2,16,3],[17,2,17,3],[18,1,19,1],[18,2,18,3],[19,2,19,3],[20,1,21,1],[20,2,20,3],[16,5,17,5],[16,6,17,8],[16,9,17,12],[16,13,17,15],[21,2,21,3],[22,1,23,1],[22,2,22,3],[23,2,23,3],[12,0,13,0],[12,5,13,5],[12,6,13,8],[12,9,13,12],[12,13,13,15],[12,1,13,1],[12,2,12,3],[13,2,13,3],[14,0,15,0],[14,1,15,1],[14,2,14,3],[15,2,15,3],[14,5,15,5],[12,22,13,22],[12,23,13,23],[14,6,15,8],[14,9,15,12],[14,13,15,15],[14,16,15,16],[14,17,15,19],[14,20,15,21],[14,23,15,23],[14,22,15,22],[16,23,17,23],[18,5,19,5],[18,6,19,8],[18,9,19,12],[18,13,19,15],[18,16,19,16],[18,17,19,19],[18,20,19,21],[18,23,19,23],[16,16,17,16],[16,22,17,22],[18,22,19,22],[20,23,21,23],[22,5,23,5],[22,6,23,8],[22,9,23,12],[22,13,23,15],[22,16,23,16],[22,17,23,19],[22,20,23,21],[22,23,23,23],[20,5,21,5],[20,6,21,8],[20,9,21,12],[20,13,21,15],[20,16,21,16],[20,22,21,22],[22,22,23,22]]}
[]
[null,null,null,null,null,null,"会　員　名　簿",null,null,null,null,null,null,null,null,null,null,null,null,null,null,"申請⑬ 電子申請用"]
[]
[null,"＊毎月１０日までにご報告ください。１０日以降の届出は、翌月より適用となります。",null,null,null,null,null,null,null,null,null,null,null,null,null,null,"申請日：　",null,null,null,{"$f":"TODAY()","v":"2025-08-25"}]
[]
["事業所コ－ド",null,null,null,null,null,null,null,null,null,null,null,null,"住　所","〒",null,null,null,null,null,null,null,null,"事業主印"]
[]
[null,null,null,"一般財団法人鳥取市中小企業勤労者福祉サ－ビスセンタ－　御中",null,null,null,null,null,null,null,null,null,null,"☎"]
[null,null,null,null,null,null,null,null,null,null,null,null,null,"事業所名",null,null,null,null,null,null,null,null,null,null,null,null,null,null,null,null,"1.協会けんぽ"]
[null,"  名簿区分(１.新規・２追加)",null,null,null,null,null,null,null,null,null,null,null,null,null,null,null,null,null,null,null,null,null,null,null,"１.新規","２.追加",null,null,null,"2.国民健康保険"]
[null,null,null,null,null,null,null,null,null,null,null,null,null,null,null,null,null,null,null,null,null,null,null,null,null,null,null,null,null,null,"3.組合保険"]
[null,"会員コード","カナ　　　　　　　　　　　　　　　　　　姓　　　　　　名",null,null,"郵便番号","住所1（地区町村番地）",null,null,"住所2（地区町村番地）",null,null,null,"電話番号",null,null,"性別","生年月日　　　　（西歴8桁数字）",null,null,"入社年月日　（西暦8桁数字）",null,"会員区分１\n（保険種別）","会員区分２\n（職種）",null,null,null,null,null,null,"4.被扶養者"]
["例",null,"ヒマワリ",null,"タロウ","6800031","鳥取市本町3丁目201番地",null,null,"鳥取産業会館・鳥取商工会議所ビル1階",null,null,null,"0857371737",null,null,"男","19800101",null,null,"20050401",null,"2.国民健康保険","4.雇用従業員"]
[null,null,"向日葵",null,"太郎"]
[1,null,null,null,null,null,null,null,null,null,null,null,null,null,null,null,null,null,null,null,null,null,null,null,null,null,null,null,null,null,"1.事業主",{"$f":"IFERROR(MATCH(W15,{\"1.協会けんぽ\",\"2.国民健康保険\",\"3.組合保険\",\"4.被扶養者\"},0),\"\")","v":""},{"$f":"IF(X15=\"1.事業主\", 1,\nIF(X15=\"2.常勤役員\", 2,\nIF(X15=\"3.非常勤役員\", 3,\nIF(X15=\"4.雇用従業員\", 4,\nIF(X15=\"5.職員\", 5,\nIF(X15=\"6.パートタイマー\", 6,\nIF(X15=\"7.その他\", 7, \"\")))))))","v":""},{"$f":"IF(Q15=\"男\", 1, IF(H12=\"女\", 2, \"\"))","v":""},{"$f":"$B15 & \"　\" & $C15","v":"　"}]
[null,null,null,null,null,null,null,null,null,null,null,null,null,null,null,null,null,null,null,null,null,null,null,null,null,null,null,null,null,null,"2.常勤役員",{"$f":"IFERROR(MATCH(W16,{\"1.協会けんぽ\",\"2.国民健康保険\",\"3.組合保険\",\"4.被扶養者\"},0),\"\")","v":""},{"$f":"IF(X16=\"1.事業主\", 1,\nIF(X16=\"2.常勤役員\", 2,\nIF(X16=\"3.非常勤役員\", 3,\nIF(X16=\"4.雇用従業員\", 4,\nIF(X16=\"5.職員\", 5,\nIF(X16=\"6.パートタイマー\", 6,\nIF(X16=\"7.その他\", 7, \"\")))))))","v":""},{"$f":"IF(Q16=\"男\", 1, IF(H13=\"女\", 2, \"\"))","v":""},{"$f":"$B16 & \"　\" & $C16","v":"　"}]
[2,null,null,null,null,null,null,null,null,null,null,null,null,null,null,null,null,null,null,null,null,null,null,null,null,null,null,null,null,null,"3.非常勤役員",{"$f":"IFERROR(MATCH(W17,{\"1.協会けんぽ\",\"2.国民健康保険\",\"3.組合保険\",\"4.被扶養者\"},0),\"\")","v":""},"",{"$f":"IF(Q17=\"男\", 1, IF(H15=\"女\", 2, \"\"))","v":""},"　"]
[null,null,null,null,null,null,null,null,null,null,null,null,null,null,null,null,null,null,null,null,null,null,null,null,null,null,null,null,null,null,"4.雇用従業員",{"$f":"IFERROR(MATCH(W18,{\"1.協会けんぽ\",\"2.国民健康保険\",\"3.組合保険\",\"4.被扶養者\"},0),\"\")","v":""},"","","　"]
[3,null,null,null,null,null,null,null,null,null,null,null,null,null,null,null,null,null,null,null,null,null,null,null,null,null,null,null,null,null,"5.パートタイマー",{"$f":"IFERROR(MATCH(W19,{\"1.協会けんぽ\",\"2.国民健康保険\",\"3.組合保険\",\"4.被扶養者\"},0),\"\")","v":""},"","","　"]
[null,null,null,null,null,null,null,null,null,null,null,null,null,null,null,null,null,null,null,null,null,null,null,null,null,null,null,null,null,null,"6.その他",{"$f":"IFERROR(MATCH(W20,{\"1.協会けんぽ\",\"2.国民健康保険\",\"3.組合保険\",\"4.被扶養者\"},0),\"\")","v":""},"","","　"]
[4,null,null,null,null,null,null,null,null,null,null,null,null,null,null,null,null,null,null,null,null,null,null,null,null,null,null,null,null,null,null,{"$f":"IFERROR(MATCH(W21,{\"1.協会けんぽ\",\"2.国民健康保険\",\"3.組合保険\",\"4.被扶養者\"},0),\"\")","v":""},"","","　"]
[null,null,null,null,null,null,null,null,null,null,null,null,null,null,null,null,null,null,null,null,null,null,null,null,null,null,null,null,null,null,null,{"$f":"IFERROR(MATCH(W22,{\"1.協会けんぽ\",\"2.国民健康保険\",\"3.組合保険\",\"4.被扶養者\"},0),\"\")","v":""},"","","　"]
[5,null,null,null,null,null,null,null,null,null,null,null,null,null,null,null,null,null,null,null,null,null,null,null,null,null,null,null,null,null,null,{"$f":"IFERROR(MATCH(W23,{\"1.協会けんぽ\",\"2.国民健康保険\",\"3.組合保険\",\"4.被扶養者\"},0),\"\")","v":""},"","","　"]
[null,null,null,null,null,null,null,null,null,null,null,null,null,null,null,null,null,null,null,null,null,null,null,null,null,null,null,null,null,null,null,{"$f":"IFERROR(MATCH(W24,{\"1.協会けんぽ\",\"2.国民健康保険\",\"3.組合保険\",\"4.被扶養者\"},0),\"\")","v":""},"","","　"]
[]
[null,null,null,null,null,null,null,null,null,null,null,null,null,"処理","局長",null,null,"担当",null,null,"合議",null,"受付印"]

{"sheet":"管理用","index":1,"n_rows":11,"n_cols":60,"rows_kept":11,"cut":false,"hidden":false,"merged":[]}
["名前","カナ(半角カナ)",null,null,null,null,null,null,null,null,"携帯番号","E-MAIL","携帯E-MAIL","性別","生年月日\n(西暦)半角数字","入社年月日\n(西暦)半角数字","入社年月日",null,"結婚年月日",null,"会員区分１\n（保険種別）","会員区分２\n（職種）","会員区分３"]
[{"$f":"入力シート!AI15","v":"　"},{"$f":"ASC(入力シート!$D15)","v":""},null,null,null,null,null,null,null,null,null,null,null,{"$f":"入力シート!AH15","v":""},{"$f":"ASC(入力シート!$R15)","v":""},{"$f":"ASC(入力シート!$U15)","v":""},null,null,null,null,{"$f":"入力シート!AF15","v":""},{"$f":"入力シート!AG15","v":""},null,null,1,null,null,null,null,null,null,null,null,null,null,null,null,null,null,null,null,null,null,null,null,null,null,null,null,null,null,null,null,null,null,null,null,null,null,{"$f":"IF(ISNUMBER(V2), 0, \"\")","v":""}]
[{"$f":"入力シート!AI16","v":"　"},{"$f":"ASC(入力シート!$D16)","v":""},null,null,null,null,null,null,null,null,null,null,null,{"$f":"入力シート!AH16","v":""},{"$f":"ASC(入力シート!$R16)","v":""},{"$f":"ASC(入力シート!$U16)","v":""},null,null,null,null,{"$f":"入力シート!AF16","v":""},{"$f":"入力シート!AG16","v":""},null,null,1,null,null,null,null,null,null,null,null,null,null,null,null,null,null,null,null,null,null,null,null,null,null,null,null,null,null,null,null,null,null,null,null,null,null,{"$f":"IF(ISNUMBER(V3), 0, \"\")","v":""}]
[{"$f":"入力シート!AI17","v":"　"},{"$f":"ASC(入力シート!$D17)","v":""},null,null,null,null,null,null,null,null,null,null,null,{"$f":"入力シート!AH17","v":""},{"$f":"ASC(入力シート!$R17)","v":""},{"$f":"ASC(入力シート!$U17)","v":""},null,null,null,null,{"$f":"入力シート!AF17","v":""},{"$f":"入力シート!AG17","v":""},null,null,1,null,null,null,null,null,null,null,null,null,null,null,null,null,null,null,null,null,null,null,null,null,null,null,null,null,null,null,null,null,null,null,null,null,null,""]
[{"$f":"入力シート!AI18","v":"　"},{"$f":"ASC(入力シート!$D18)","v":""},null,null,null,null,null,null,null,null,null,null,null,{"$f":"入力シート!AH18","v":""},{"$f":"ASC(入力シート!$R18)","v":""},{"$f":"ASC(入力シート!$U18)","v":""},null,null,null,null,{"$f":"入力シート!AF18","v":""},{"$f":"入力シート!AG18","v":""},null,null,1,null,null,null,null,null,null,null,null,null,null,null,null,null,null,null,null,null,null,null,null,null,null,null,null,null,null,null,null,null,null,null,null,null,null,""]
[{"$f":"入力シート!AI19","v":"　"},{"$f":"ASC(入力シート!$D19)","v":""},null,null,null,null,null,null,null,null,null,null,null,{"$f":"入力シート!AH19","v":""},{"$f":"ASC(入力シート!$R19)","v":""},{"$f":"ASC(入力シート!$U19)","v":""},null,null,null,null,{"$f":"入力シート!AF19","v":""},{"$f":"入力シート!AG19","v":""},null,null,null,null,null,null,null,null,null,null,null,null,null,null,null,null,null,null,null,null,null,null,null,null,null,null,null,null,null,null,null,null,null,null,null,null,null,""]
[{"$f":"入力シート!AI20","v":"　"},{"$f":"ASC(入力シート!$D20)","v":""},null,null,null,null,null,null,null,null,null,null,null,{"$f":"入力シート!AH20","v":""},{"$f":"ASC(入力シート!$R20)","v":""},{"$f":"ASC(入力シート!$U20)","v":""},null,null,null,null,{"$f":"入力シート!AF20","v":""},{"$f":"入力シート!AG20","v":""},null,null,null,null,null,null,null,null,null,null,null,null,null,null,null,null,null,null,null,null,null,null,null,null,null,null,null,null,null,null,null,null,null,null,null,null,null,""]
[{"$f":"入力シート!AI21","v":"　"},{"$f":"ASC(入力シート!$D21)","v":""},null,null,null,null,null,null,null,null,null,null,null,{"$f":"入力シート!AH21","v":""},{"$f":"ASC(入力シート!$R21)","v":""},{"$f":"ASC(入力シート!$U21)","v":""},null,null,null,null,{"$f":"入力シート!AF21","v":""},{"$f":"入力シート!AG21","v":""},null,null,null,null,null,null,null,null,null,null,null,null,null,null,null,null,null,null,null,null,null,null,null,null,null,null,null,null,null,null,null,null,null,null,null,null,null,""]
[{"$f":"入力シート!AI22","v":"　"},{"$f":"ASC(入力シート!$D22)","v":""},null,null,null,null,null,null,null,null,null,null,null,{"$f":"入力シート!AH22","v":""},{"$f":"ASC(入力シート!$R22)","v":""},{"$f":"ASC(入力シート!$U22)","v":""},null,null,null,null,{"$f":"入力シート!AF22","v":""},{"$f":"入力シート!AG22","v":""},null,null,null,null,null,null,null,null,null,null,null,null,null,null,null,null,null,null,null,null,null,null,null,null,null,null,null,null,null,null,null,null,null,null,null,null,null,""]
[{"$f":"入力シート!AI23","v":"　"},{"$f":"ASC(入力シート!$D23)","v":""},null,null,null,null,null,null,null,null,null,null,null,{"$f":"入力シート!AH23","v":""},{"$f":"ASC(入力シート!$R23)","v":""},{"$f":"ASC(入力シート!$U23)","v":""},null,null,null,null,{"$f":"入力シート!AF23","v":""},{"$f":"入力シート!AG23","v":""},null,null,null,null,null,null,null,null,null,null,null,null,null,null,null,null,null,null,null,null,null,null,null,null,null,null,null,null,null,null,null,null,null,null,null,null,null,""]
[{"$f":"入力シート!AI24","v":"　"},{"$f":"ASC(入力シート!$D24)","v":""},null,null,null,null,null,null,null,null,null,null,null,{"$f":"入力シート!AH24","v":""},{"$f":"ASC(入力シート!$R24)","v":""},{"$f":"ASC(入力シート!$U24)","v":""},null,null,null,null,{"$f":"入力シート!AF24","v":""},{"$f":"入力シート!AG24","v":""},null,null,null,null,null,null,null,null,null,null,null,null,null,null,null,null,null,null,null,null,null,null,null,null,null,null,null,null,null,null,null,null,null,null,null,null,null,""]